Workbook

Sheet Objekt
A1: Objektdaten: | C1: EFH in | F1: __________________
A3: Regenwasser
A5: Regenwasseranfall | C5: Faktor | E5: GG | F5: 1. UG | G5: EG | H5: 1. OG | I5: 2. OG | J5: 3. OG | K5: 4. OG | M5: Total m2 | O5: r = | P5: Total | Q5: l/s
A6: Hartbelag | C6: 1 | H6: 62.3 | I6: 89.3 | M6: =SUM(E6:L6) -> 151.6 | O6: 0.03 | P6: =O6*C6*M6 -> 4.548 | Q6: l/s
A7: begrünt | C7: 0.3 | M7: =SUM(E7:L7) -> 0 | O7: 0.03 | P7: =O7*C7*M7 -> 0 | Q7: l/s
A8: Garagerampe | C8: 1 | M8: =SUM(E8:L8) -> 0 | O8: 0.03 | P8: =O8*C8*M8 -> 0 | Q8: l/s
A10: Total Volumenstrom | M10: =SUM(M6:M8) -> 151.6 | N10: m2 | P10: =SUM(P6:P8) -> 4.548 | Q10: l/s
A13: Regenwassernutzung | B13: WAR (LU) | E13: GG | F13: 1. UG | G13: EG | H13: 1. OG | I13: 2. OG | J13: 3. OG | K13: 4. OG | M13: Apparate | O13: Total WAR
A14: Gartenventil (WAR) | B14: 5 | F14: 1 | G14: 1 | M14: =SUM(E14:L14) -> 2 | O14: =IF(M14=0,"",B14*M14) -> 10 | S14: =IF(O14="",0,O14/$M14) -> 5
A15: WC (WAR) | B15: 1 | H15: 1 | M15: 1 | O15: =IF(M15=0,"",B15*M15) -> 1 | S15: =IF(O15="",0,O15/$M15) -> 1
A16: Urinoir (WAR) | B16: 3 | M16: 0 | O16: =IF(M16=0,"",B16*M16) ->  | S16: =IF(O16="",0,O16/$M16) -> 0 | V16: Diagramm 1
A17: Waschmaschine (WAR) | B17: 2 | M17: 0 | O17: =IF(M17=0,"",B17*M17) ->  | S17: =IF(O17="",0,O17/$M17) -> 0 | V17: LU | W17: KW | X17: WW
A19: Total | M19: =SUM(M14:M17) -> 3 | N19: Stk. | O19: =SUM(O14:O17) -> 11 | P19: BW | S19: =MAX(S14:S17) -> 5 | V19: 3 | W19: =0.459*POWER(O19/10,0.353) -> 0.4747055436
A20: Total Volumenstrom (gemäss Gleichzeitigkeitsdiagramm W3d, S.17, max. 5'000 BW) | O20: =IF($O$61<300,VLOOKUP(S19,V19:W20,2),0.459*POWER($O$61/10,0.353)) -> 0.6128287114 | P20: l/s | V20: 5 | W20: =0.598*POWER(O19/10,0.257) -> 0.6128287114
A23: Trinkwasser
A25: Apparate | B25: WKN (LU) | C25: WAR (LU) | E25: GG | F25: 1. UG | G25: EG | H25: 1. OG | I25: 2. OG | J25: 3. OG | K25: 4. OG | M25: Apparate | O25: Total WKN | P25: Total WAR
A26: Gartenventil Netzdruck | B26: 5 | G26: 1 | M26: =SUM(E26:L26) -> 1 | O26: =$B26*M26 -> 5 | S26: =IF(M26=0,0,O26/M26) -> 5
A27: Total | M27: =SUM(M26:M26) -> 1 | N27: Stk. | O27: =SUM(O26:O26) -> 5 | P27: BW
A28: Total Volumenstrom (gemäss Gleichzeitigkeitsdiagramm W3d, S.17, max. 5'000 BW) | O28: =IF($O$27<300,0.598*POWER($O$27/10,0.257),0.459*POWER($O$27/10,0.353)) -> 0.5004220931 | P28: l/s
A31: Apparate | B31: WKR (LU) | C31: WWV (LU) | D31: WAS (DU) | E31: GG | F31: 1. UG | G31: EG | H31: 1. OG | I31: 2. OG | J31: 3. OG | K31: 4. OG | M31: Apparate | O31: Total WKR | P31: Total WWV | Q31: Total WAS
A32: Küche | B32: 3 | C32: 2 | D32: 0.8 | G32: 1 | M32: =SUM(E32:L32) -> 1 | O32: =IF(M32=0,"",B32*M32) -> 3 | P32: =IF(M32=0,"",C32*M32) -> 2 | Q32: =IF(M32=0,"",D32*M32) -> 0.8 | S32: =IF(O32="",0,O32/$M32) -> 3 | T32: =IF(P32="",0,P32/$M32) -> 2
A34: WC | B34: 1 | D34: 2.5 | M34: =SUM(E34:L34) -> 0 | O34: =IF(M34=0,"",B34*M34) ->  | Q34: =IF(M34=0,"",D34*M34) ->  | S34: =IF(O34="",0,O34/$M34) -> 0 | T34: 0
A35: Waschtisch | B35: 1 | C35: 1 | D35: 0.5 | M35: =SUM(E35:L35) -> 0 | P35: =IF(M35=0,"",C35*M35) ->  | S35: 0 | T35: 0
A37: Badewanne | B37: 3 | C37: 3 | D37: 0.8 | G37: 1 | M37: =SUM(E37:L37) -> 1 | O37: 3 | P37: 3 | Q37: 0.8 | S37: 3 | T37: 3
A38: WC | B38: 1 | D38: 2.5 | G38: 1 | M38: =SUM(E38:L38) -> 1 | O38: 1 | Q38: 2.5 | S38: 1 | T38: 0
A39: Waschtisch | B39: 1 | C39: 1 | D39: 0.5 | G39: 1 | M39: =SUM(E39:L39) -> 1 | O39: 1 | P39: 1 | Q39: 0.5 | S39: 1 | T39: 1
A41: Duschenwanne | B41: 2 | C41: 2 | D41: 0.6 | H41: 1 | M41: 1 | O41: 2 | P41: 2 | Q41: 0.6 | S41: 2 | T41: 2
A42: WC | B42: 1 | D42: 2.5 | H42: 1 | M42: =SUM(E42:L42) -> 1 | O42: 1 | Q42: 2.5 | S42: 1 | T42: 0
A43: Waschtisch | B43: 1 | C43: 1 | D43: 0.5 | H43: 1 | M43: =SUM(E43:L43) -> 1 | O43: 1 | P43: 1 | Q43: 0.5 | S43: 1 | T43: 1
A45: Waschtrog | B45: 2 | C45: 2 | D45: 0.8 | F45: 1 | M45: 1 | O45: 2 | P45: 2 | Q45: 0.8 | S45: 2 | T45: 2
A46: Waschmaschine | B46: 2 | D46: 0.8 | F46: 1 | M46: 1 | O46: 2 | Q46: 0.8 | S46: 2 | T46: 0
A48: Gartenhahn Terrasse | B48: 2 | M48: 0 | S48: 0 | T48: 0
A50: Ausgussbecken | B50: 2 | C50: 2 | D50: 0.8 | M50: =SUM(E50:L50) -> 0 | O50: =IF(M50=0,"",B50*M50) ->  | P50: =IF(M50=0,"",C50*M50) ->  | Q50: =IF(M50=0,"",D50*M50) ->  | S50: 0 | T50: 0
A51: Urinal wasserlos | D51: 0.8 | M51: 0 | S51: 0 | T51: 0
A52: Urinal | B52: 3 | D52: 0.8 | M52: 0 | S52: 0 | T52: 0
A53: Bidet | B53: 1 | C53: 1 | D53: 0.5 | M53: 0 | S53: 0 | T53: 0
A55: Secomat | D55: 0.1 | M55: 0 | S55: 0 | T55: 0
A56: BA 56 | D56: 1 | M56: =SUM(E56:L56) -> 0 | S56: 0 | T56: 0
A57: BA 70 | D57: 1.5 | M57: 0 | S57: 0 | T57: 0
A58: BA 110 | D58: 2.5 | M58: 0 | S58: 0 | T58: 0 | V58: Diagramm 1
A59: ___ | M59: 0 | S59: 0 | T59: 0 | V59: LU | W59: KW | X59: WW
A61: Total | M61: =SUM(M37:M59) -> 8 | N61: Stk. | O61: =SUM(O32:O59) -> 16 | P61: =SUM(P32:P59) -> 11 | Q61: LU | S61: =MAX(S32:S59) -> 3 | T61: =MAX(T32:T59) -> 3 | V61: 3 | W61: =0.459*POWER(O61/10,0.353) -> 0.5418349806 | X61: =0.459*POWER(P61/10,0.353) -> 0.4747055436
A62: Total Volumenstrom (gemäss Gleichzeitigkeitsdiagramm W3d, S.17, max. 5'000 BW) | O62: =IF($O$61<300,VLOOKUP(S61,V61:X62,2),0.459*POWER($O$61/10,0.353)) -> 0.5418349806 | P62: =IF($P$61<300,VLOOKUP(T61,V61:X62,3),0.459*POWER($P$61/10,0.353)) -> 0.4747055436 | Q62: l/s | V62: 5 | W62: =0.598*POWER(O61/10,0.257) -> 0.6747766091 | X62: =0.598*POWER(P61/10,0.257) -> 0.6128287114
A66: Total | M66: =M61+M27 -> 9 | N66: Stk. | O66: =O27+O61+P61+O19 -> 43 | P66: LU | S66: =MAX(S26:S59) -> 5 | V66: 3 | W66: =0.459*POWER(O66/10,0.353) -> 0.7681164222
A67: Total Volumenstrom (gemäss Gleichzeitigkeitsdiagramm W3d, S.17, max. 5'000 BW) | O67: =IF($O$66<300,VLOOKUP(S66,V66:X67,2),0.459*POWER($O$66/10,0.353)) -> 0.8699665954 | P67: l/s | V67: 5 | W67: =0.598*POWER(O66/10,0.257) -> 0.8699665954
A70: Schmutzabwasser (WAS)
A73: Total Volumenstrom (gemäss 0.5 * WURZEL(DU) oder max. Wert) | M73: =SUM(Q32:Q59) -> 9.8 | N73: DU | P73: =IF(M73<60,0.5*SQRT(60),0.5*SQRT(M73)) -> 3.872983346 | Q73: l/s
O76: =IF(M76=0,"",B76*M76) -> 
